[Event "Early-Titled-Tuesday-Blitz-January-23-2024"]
[Site "Chess.com"]
[Date "2024.01.23"]
[Round "5"]
[White "AsselLesbekova"]
[Black "Shuvalov"]
[Result "0-1"]
[WhiteElo "2284"]
[BlackElo "2464"]
[TimeControl "180+1"]
[EndTime "8:56:21 PST"]
[Termination "Shuvalov won by resignation"]

1. e4 {[%clk 0:02:58.3]} 1... e6 {[%clk 0:02:58.2]} 2. d4 {[%clk 0:02:50.1]}
2... d5 {[%clk 0:02:58.2]} 3. Nc3 {[%clk 0:02:48.8]} 3... Bb4 {[%clk 0:02:57.6]}
4. Ne2 {[%clk 0:02:47.3]} 4... Nc6 {[%clk 0:02:56.9]} 5. a3 {[%clk 0:02:41.5]}
5... Ba5 {[%clk 0:02:56.7]} 6. b4 {[%clk 0:02:40.4]} 6... Bb6 {[%clk 0:02:56.6]}
7. exd5 {[%clk 0:02:40.6]} 7... exd5 {[%clk 0:02:56.1]} 8. Be3 {[%clk
0:02:31.5]} 8... Nf6 {[%clk 0:02:55.2]} 9. Ng3 {[%clk 0:02:24.3]} 9... O-O
{[%clk 0:02:53.1]} 10. Be2 {[%clk 0:02:23.8]} 10... Re8 {[%clk 0:02:50.2]} 11.
O-O {[%clk 0:02:23]} 11... h6 {[%clk 0:02:48]} 12. Nh5 {[%clk 0:02:14.8]} 12...
Nxh5 {[%clk 0:02:39.9]} 13. Bxh5 {[%clk 0:02:15.7]} 13... Bf5 {[%clk 0:02:36.8]}
14. Bf3 {[%clk 0:02:13.6]} 14... Ne7 {[%clk 0:02:36.2]} 15. Bg4 {[%clk
0:02:03.4]} 15... c6 {[%clk 0:02:35.4]} 16. Re1 {[%clk 0:02:01.5]} 16... Qd7
{[%clk 0:02:33.6]} 17. Bf3 {[%clk 0:01:59.8]} 17... Bc7 {[%clk 0:02:28.1]} 18.
Qd2 {[%clk 0:01:58.2]} 18... Ng6 {[%clk 0:02:26.9]} 19. g3 {[%clk 0:01:51.7]}
19... Re7 {[%clk 0:02:10.4]} 20. Rac1 {[%clk 0:01:46.1]} 20... Rae8 {[%clk
0:02:07.2]} 21. Na4 {[%clk 0:01:46.2]} 21... b6 {[%clk 0:02:06.4]} 22. c4 {[%clk
0:01:45.2]} 22... Be4 {[%clk 0:01:56.6]} 23. Bxe4 {[%clk 0:01:35.4]} 23... Rxe4
{[%clk 0:01:57.5]} 24. Qc2 {[%clk 0:01:19.1]} 24... Bd8 {[%clk 0:01:31.4]} 25.
cxd5 {[%clk 0:01:11.3]} 25... cxd5 {[%clk 0:01:32.3]} 26. Nc3 {[%clk 0:01:10.9]}
26... R4e6 {[%clk 0:01:27.5]} 27. Qa4 {[%clk 0:01:04.7]} 27... Qb7 {[%clk
0:01:23.5]} 28. Qb5 {[%clk 0:00:59.3]} 28... Bg5 {[%clk 0:01:13.5]} 29. Qxd5
{[%clk 0:00:45.6]} 29... Qe7 {[%clk 0:01:08.3]} 30. Qf3 {[%clk 0:00:38.9]} 30...
Bxe3 {[%clk 0:01:04.1]} 31. Nd5 {[%clk 0:00:25.5]} 31... Bxf2+ {[%clk
0:00:50.4]} 32. Kxf2 {[%clk 0:00:26.4]} 32... Qd6 {[%clk 0:00:46.9]} 33. Rxe6
{[%clk 0:00:25.2]} 33... Rxe6 {[%clk 0:00:36.8]} 34. Rc8+ {[%clk 0:00:24]} 34...
Nf8 {[%clk 0:00:37.1]} 35. Rc4 {[%clk 0:00:18.8]} 35... Nd7 {[%clk 0:00:32]} 36.
Nf4 {[%clk 0:00:16.3]} 36... Rf6 {[%clk 0:00:29.1]} 37. Kg2 {[%clk 0:00:15.7]}
37... g5 {[%clk 0:00:27.4]} 38. Qa8+ {[%clk 0:00:16]} 38... Nf8 {[%clk
0:00:25.7]} 39. Nd5 {[%clk 0:00:10.8]} 39... Re6 {[%clk 0:00:21.9]} 40. Rc8
{[%clk 0:00:10.1]} 40... Kg7 {[%clk 0:00:21.4]} 41. Rc2 {[%clk 0:00:06.6]} 41...
Re4 {[%clk 0:00:17.6]} 42. Rd2 {[%clk 0:00:05.9]} 42... Qe6 {[%clk 0:00:15.9]}
43. Nc3 {[%clk 0:00:06]} 43... Re3 {[%clk 0:00:14.7]} 44. Nd1 {[%clk 0:00:03.1]}
44... Re2+ {[%clk 0:00:14.4]} 45. Rxe2 {[%clk 0:00:03.6]} 45... Qxe2+ {[%clk
0:00:15.2]} 46. Kh3 {[%clk 0:00:04.4]} 46... Qxd1 {[%clk 0:00:14.7]} 47. Qe4
{[%clk 0:00:04.7]} 47... Qf1+ {[%clk 0:00:13.2]} 48. Kg4 {[%clk 0:00:04.6]}
48... f5+ {[%clk 0:00:06.1]} 49. Qxf5 {[%clk 0:00:04.6]} 49... h5+ {[%clk
0:00:03.6]} 50. Kxg5 {[%clk 0:00:04.7]} 50... Nh7+ {[%clk 0:00:03.8]} 51. Qxh7+
{[%clk 0:00:02.1]} 51... Kxh7 {[%clk 0:00:03.7]} 52. d5 {[%clk 0:00:03]} 52...
Qd3 {[%clk 0:00:03.5]} 53. Kxh5 {[%clk 0:00:03.9]} 53... Qxd5+ {[%clk
0:00:03.7]} 54. Kh4 {[%clk 0:00:04.1]} 54... Qb3 {[%clk 0:00:04.6]} 55. g4
{[%clk 0:00:05]} 55... Qxa3 {[%clk 0:00:05.5]} 56. Kh5 {[%clk 0:00:05.2]} 56...
Qxb4 {[%clk 0:00:06.4]} 57. g5 {[%clk 0:00:06.1]} 57... Qc5 {[%clk 0:00:06.5]}
58. h4 {[%clk 0:00:07]} 58... Kg7 {[%clk 0:00:07.1]} 59. Kg4 {[%clk 0:00:06.8]}
59... b5 {[%clk 0:00:08]} 60. Kh5 {[%clk 0:00:07.7]} 60... b4 {[%clk 0:00:08.9]}
61. Kg4 {[%clk 0:00:08.6]} 61... b3 {[%clk 0:00:09.2]} 62. h5 {[%clk 0:00:09.5]}
62... b2 {[%clk 0:00:09.6]} 63. h6+ {[%clk 0:00:10.4]} 63... Kg6 {[%clk
0:00:10]} 64. h7 {[%clk 0:00:11.3]} 64... Kxh7 {[%clk 0:00:09.7]} 65. g6+ {[%clk
0:00:11.4]} 65... Kxg6 {[%clk 0:00:09.4]} 0-1

[Event "Early-Titled-Tuesday-Blitz-January-23-2024"]
[Site "Chess.com"]
[Date "2024.01.23"]
[Round "5"]
[White "mishanick"]
[Black "eljanov"]
[Result "0-1"]
[WhiteElo "3063"]
[BlackElo "2878"]
[TimeControl "180+1"]
[EndTime "8:56:23 PST"]
[Termination "eljanov won on time"]

1. d4 {[%clk 0:03:00.9]} 1... d5 {[%clk 0:02:59.5]} 2. c4 {[%clk 0:03:01.6]}
2... e6 {[%clk 0:02:59.9]} 3. Nc3 {[%clk 0:03:02.3]} 3... Nf6 {[%clk 0:03:00.6]}
4. Bg5 {[%clk 0:03:01.9]} 4... Be7 {[%clk 0:02:59.3]} 5. e3 {[%clk 0:03:02.3]}
5... h6 {[%clk 0:02:59.5]} 6. Bxf6 {[%clk 0:03:02.4]} 6... Bxf6 {[%clk
0:02:59.7]} 7. cxd5 {[%clk 0:03:02.5]} 7... exd5 {[%clk 0:02:59.7]} 8. Qb3
{[%clk 0:03:01.9]} 8... c6 {[%clk 0:02:58.2]} 9. Nf3 {[%clk 0:03:02.4]} 9... O-O
{[%clk 0:02:58]} 10. Bd3 {[%clk 0:03:02.5]} 10... Be7 {[%clk 0:02:51.4]} 11. O-O
{[%clk 0:03:00.1]} 11... Bd6 {[%clk 0:02:51.8]} 12. e4 {[%clk 0:02:42.7]} 12...
dxe4 {[%clk 0:02:51.6]} 13. Nxe4 {[%clk 0:02:43.6]} 13... Bc7 {[%clk 0:02:52.2]}
14. h3 {[%clk 0:02:30.2]} 14... Nd7 {[%clk 0:02:48.7]} 15. Rfe1 {[%clk
0:02:27.9]} 15... Nf6 {[%clk 0:02:41.9]} 16. Nc5 {[%clk 0:02:02.5]} 16... b6
{[%clk 0:02:27.8]} 17. Ne4 {[%clk 0:02:01.5]} 17... Be6 {[%clk 0:01:58.7]} 18.
Qc2 {[%clk 0:01:59]} 18... Bd5 {[%clk 0:01:56.1]} 19. Nxf6+ {[%clk 0:01:58.6]}
19... Qxf6 {[%clk 0:01:55.9]} 20. Bh7+ {[%clk 0:01:58.9]} 20... Kh8 {[%clk
0:01:55.3]} 21. Be4 {[%clk 0:01:59.8]} 21... Rad8 {[%clk 0:01:50.3]} 22. Bxd5
{[%clk 0:01:58.3]} 22... Rxd5 {[%clk 0:01:50.5]} 23. Re4 {[%clk 0:01:58.9]}
23... c5 {[%clk 0:01:28.5]} 24. Rae1 {[%clk 0:01:59]} 24... Bd6 {[%clk 0:01:19]}
25. Qb3 {[%clk 0:01:18]} 25... Rf5 {[%clk 0:01:08.9]} 26. Re8 {[%clk 0:01:18.5]}
26... Kg8 {[%clk 0:01:07.3]} 27. dxc5 {[%clk 0:00:47.5]} 27... Rxc5 {[%clk
0:01:06.5]} 28. Qd3 {[%clk 0:00:41]} 28... Rc8 {[%clk 0:01:05.1]} 29. Rxc8
{[%clk 0:00:36.8]} 29... Rxc8 {[%clk 0:01:04.8]} 30. b3 {[%clk 0:00:37.3]} 30...
Bc5 {[%clk 0:01:01.5]} 31. g3 {[%clk 0:00:31.9]} 31... Rd8 {[%clk 0:01:00.3]}
32. Qe4 {[%clk 0:00:31.8]} 32... a5 {[%clk 0:00:59.7]} 33. Kg2 {[%clk 0:00:32]}
33... g6 {[%clk 0:00:59.8]} 34. Re2 {[%clk 0:00:32.4]} 34... h5 {[%clk
0:01:00.1]} 35. h4 {[%clk 0:00:32.3]} 35... Kg7 {[%clk 0:01:00.5]} 36. Ng5
{[%clk 0:00:32.5]} 36... Qd6 {[%clk 0:00:58.4]} 37. Qf3 {[%clk 0:00:30.5]} 37...
Qd5 {[%clk 0:00:58.1]} 38. Re4 {[%clk 0:00:29.6]} 38... Rd7 {[%clk 0:00:57]} 39.
Kh2 {[%clk 0:00:20.9]} 39... f5 {[%clk 0:00:56.4]} 40. Re2 {[%clk 0:00:20.3]}
40... Qxf3 {[%clk 0:00:55.7]} 41. Nxf3 {[%clk 0:00:21.2]} 41... Kf6 {[%clk
0:00:56.1]} 42. Kg2 {[%clk 0:00:21.6]} 42... Re7 {[%clk 0:00:40.4]} 43. Rd2
{[%clk 0:00:21.7]} 43... Kf7 {[%clk 0:00:38.7]} 44. Ng5+ {[%clk 0:00:22.1]}
44... Ke8 {[%clk 0:00:39.3]} 45. Kf3 {[%clk 0:00:21.6]} 45... Rd7 {[%clk
0:00:39.8]} 46. Re2+ {[%clk 0:00:19.2]} 46... Re7 {[%clk 0:00:40.3]} 47. Ne6
{[%clk 0:00:17.7]} 47... Bb4 {[%clk 0:00:38.7]} 48. Nf4 {[%clk 0:00:05.4]} 48...
Rxe2 {[%clk 0:00:38.7]} 49. Kxe2 {[%clk 0:00:06.3]} 49... Kf7 {[%clk 0:00:38.8]}
50. Nd5 {[%clk 0:00:05]} 50... Bc5 {[%clk 0:00:38.3]} 51. Nf4 {[%clk 0:00:04.8]}
51... Kf6 {[%clk 0:00:37.5]} 52. Nd3 {[%clk 0:00:05.4]} 52... Bd4 {[%clk
0:00:36.5]} 53. Kf3 {[%clk 0:00:06]} 53... g5 {[%clk 0:00:34.9]} 54. hxg5+
{[%clk 0:00:05.7]} 54... Kxg5 {[%clk 0:00:35.8]} 55. Nf4 {[%clk 0:00:06.3]}
55... Be5 {[%clk 0:00:30.3]} 56. Nd5 {[%clk 0:00:06.4]} 56... b5 {[%clk
0:00:30.8]} 57. Ke3 {[%clk 0:00:05.2]} 57... Bd6 {[%clk 0:00:29]} 58. Kf3 {[%clk
0:00:04.2]} 58... Bc5 {[%clk 0:00:26]} 59. Kg2 {[%clk 0:00:04.1]} 59... b4
{[%clk 0:00:22.4]} 60. f4+ {[%clk 0:00:03.9]} 60... Kg6 {[%clk 0:00:22.6]} 61.
Kf3 {[%clk 0:00:04.3]} 61... Kf7 {[%clk 0:00:22.5]} 62. Ne3 {[%clk 0:00:03.9]}
62... Ke6 {[%clk 0:00:22.6]} 63. Nc4 {[%clk 0:00:04.5]} 63... Kd5 {[%clk
0:00:21.8]} 64. Nxa5 {[%clk 0:00:04.9]} 64... Kd4 {[%clk 0:00:22.4]} 65. Nc4
{[%clk 0:00:05.6]} 65... Kc3 {[%clk 0:00:22.4]} 66. Ke2 {[%clk 0:00:02.6]} 66...
Kc2 {[%clk 0:00:22.7]} 67. Nd2 {[%clk 0:00:02.5]} 67... Kb2 {[%clk 0:00:22.2]}
68. Nf3 {[%clk 0:00:01.7]} 68... Kxa2 {[%clk 0:00:22.4]} 69. Nh4 {[%clk
0:00:02.2]} 69... Kxb3 {[%clk 0:00:22.4]} 70. Nxf5 {[%clk 0:00:02.9]} 70... Kc2
{[%clk 0:00:22.9]} 71. Ng7 {[%clk 0:00:02]} 71... b3 {[%clk 0:00:23.3]} 72. Ne6
{[%clk 0:00:02.9]} 72... Bb6 {[%clk 0:00:23.2]} 0-1

[Event "Early-Titled-Tuesday-Blitz-January-23-2024"]
[Site "Chess.com"]
[Date "2024.01.23"]
[Round "5"]
[White "enriquetejedor"]
[Black "Casper"]
[Result "0-1"]
[WhiteElo "2724"]
[BlackElo "2572"]
[TimeControl "180+1"]
[EndTime "8:56:25 PST"]
[Termination "Casper won by resignation"]

1. d4 {[%clk 0:02:52.2]} 1... d5 {[%clk 0:02:58.6]} 2. Nf3 {[%clk 0:02:50]} 2...
Nf6 {[%clk 0:02:58.7]} 3. Nbd2 {[%clk 0:02:48.1]} 3... Bg4 {[%clk 0:02:58.3]} 4.
c4 {[%clk 0:02:47.1]} 4... e6 {[%clk 0:02:57.3]} 5. Qb3 {[%clk 0:02:44.6]} 5...
Nc6 {[%clk 0:02:53.9]} 6. e3 {[%clk 0:02:39.5]} 6... a6 {[%clk 0:02:48.4]} 7.
Ne5 {[%clk 0:02:24.5]} 7... Nxe5 {[%clk 0:02:41.6]} 8. dxe5 {[%clk 0:02:22.5]}
8... Nd7 {[%clk 0:02:42.5]} 9. h3 {[%clk 0:02:17.7]} 9... Bh5 {[%clk 0:02:36]}
10. cxd5 {[%clk 0:02:17.4]} 10... Nxe5 {[%clk 0:02:32.7]} 11. dxe6 {[%clk
0:02:12.7]} 11... Be7 {[%clk 0:02:03.7]} 12. Be2 {[%clk 0:01:51.8]} 12... Bxe2
{[%clk 0:01:55.9]} 13. exf7+ {[%clk 0:01:51.3]} 13... Nxf7 {[%clk 0:01:51.4]}
14. Kxe2 {[%clk 0:01:52.2]} 14... O-O {[%clk 0:01:43.9]} 15. Rd1 {[%clk
0:01:46.7]} 15... Kh8 {[%clk 0:01:43.1]} 16. Nf3 {[%clk 0:01:46.2]} 16... Bd6
{[%clk 0:01:43.3]} 17. Bd2 {[%clk 0:01:46]} 17... Ng5 {[%clk 0:01:35]} 18. Bc3
{[%clk 0:01:38.5]} 18... Ne4 {[%clk 0:01:04]} 19. Rd4 {[%clk 0:01:23.7]} 19...
Qe7 {[%clk 0:01:01.7]} 20. Rad1 {[%clk 0:01:01.6]} 20... Rae8 {[%clk 0:01:01.6]}
21. Qxb7 {[%clk 0:01:00.4]} 21... Nxf2 {[%clk 0:01:01.2]} 22. Bd2 {[%clk
0:00:24.7]} 22... Nxd1 {[%clk 0:00:57.5]} 23. Kxd1 {[%clk 0:00:23.6]} 23... Rb8
{[%clk 0:00:54.9]} 24. Qxa6 {[%clk 0:00:20.3]} 24... Rxb2 {[%clk 0:00:55.1]} 25.
Qc4 {[%clk 0:00:20.3]} 25... Qe8 {[%clk 0:00:41.9]} 26. Re4 {[%clk 0:00:14.5]}
26... Qg6 {[%clk 0:00:40.2]} 27. Rg4 {[%clk 0:00:14.5]} 27... Qb1+ {[%clk
0:00:34.4]} 28. Ke2 {[%clk 0:00:14.8]} 28... Qxa2 {[%clk 0:00:34.8]} 29. Qxa2
{[%clk 0:00:13.5]} 29... Rxa2 {[%clk 0:00:35]} 30. Kd3 {[%clk 0:00:12.6]} 30...
Kg8 {[%clk 0:00:33.7]} 31. Bc3 {[%clk 0:00:12.2]} 31... g6 {[%clk 0:00:34.3]}
32. h4 {[%clk 0:00:11.4]} 32... Rd8 {[%clk 0:00:34.6]} 33. Bf6 {[%clk
0:00:02.5]} 33... Be7+ {[%clk 0:00:33.8]} 34. Bd4 {[%clk 0:00:01.7]} 34... c5
{[%clk 0:00:34]} 35. h5 {[%clk 0:00:02]} 35... cxd4 {[%clk 0:00:34.1]} 36. exd4
{[%clk 0:00:02.7]} 36... Kg7 {[%clk 0:00:30.7]} 37. hxg6 {[%clk 0:00:02.8]}
37... hxg6 {[%clk 0:00:31.6]} 38. Ne5 {[%clk 0:00:03.6]} 38... Ra6 {[%clk
0:00:30.3]} 39. Re4 {[%clk 0:00:02.4]} 39... Bf6 {[%clk 0:00:30.1]} 40. Nf3
{[%clk 0:00:01.8]} 40... Ra3+ {[%clk 0:00:29.4]} 41. Ke2 {[%clk 0:00:02.2]}
41... Ra2+ {[%clk 0:00:29]} 42. Kf1 {[%clk 0:00:02.3]} 42... Rb8 {[%clk
0:00:29.2]} 43. Kg1 {[%clk 0:00:02.4]} 43... Rbb2 {[%clk 0:00:28.6]} 44. Rg4
{[%clk 0:00:01.9]} 44... Re2 {[%clk 0:00:27.3]} 45. Kh2 {[%clk 0:00:02]} 45...
Kf7 {[%clk 0:00:27]} 46. Kh3 {[%clk 0:00:02.1]} 46... Ra1 {[%clk 0:00:25.6]} 47.
d5 {[%clk 0:00:02]} 47... Rd1 {[%clk 0:00:25.2]} 48. Rc4 {[%clk 0:00:01.3]}
48... Rxd5 {[%clk 0:00:25.2]} 49. Rc7+ {[%clk 0:00:01.6]} 49... Ke6 {[%clk
0:00:25.9]} 50. Rc4 {[%clk 0:00:02.2]} 50... Rh5+ {[%clk 0:00:26]} 51. Kg3
{[%clk 0:00:02.5]} 51... Ra2 {[%clk 0:00:26.3]} 52. Rc6+ {[%clk 0:00:02.6]}
52... Kf7 {[%clk 0:00:26]} 53. Rc7+ {[%clk 0:00:03.1]} 53... Ke6 {[%clk
0:00:26.5]} 54. Rc6+ {[%clk 0:00:03.5]} 54... Ke7 {[%clk 0:00:26.7]} 55. Rc7+
{[%clk 0:00:03.9]} 55... Kd6 {[%clk 0:00:27.1]} 56. Rb7 {[%clk 0:00:03.4]} 56...
Be5+ {[%clk 0:00:27]} 57. Nxe5 {[%clk 0:00:03.4]} 57... Kxe5 {[%clk 0:00:27.9]}
58. Rb6 {[%clk 0:00:03]} 58... Rg5+ {[%clk 0:00:27.2]} 59. Kh3 {[%clk
0:00:03.5]} 59... Raxg2 {[%clk 0:00:27.6]} 60. Rb5+ {[%clk 0:00:03.6]} 60... Kf6
{[%clk 0:00:28.2]} 61. Rb6+ {[%clk 0:00:03.9]} 61... Kg7 {[%clk 0:00:28.4]} 62.
Rb7+ {[%clk 0:00:04]} 62... Kh6 {[%clk 0:00:29]} 63. Rb8 {[%clk 0:00:03.6]}
63... Rg1 {[%clk 0:00:28.9]} 64. Kh2 {[%clk 0:00:03]} 64... R1g4 {[%clk
0:00:28.9]} 65. Kh3 {[%clk 0:00:03.3]} 65... Ra4 {[%clk 0:00:28.3]} 66. Rh8+
{[%clk 0:00:02.8]} 66... Kg7 {[%clk 0:00:28.3]} 67. Rc8 {[%clk 0:00:03.7]} 67...
Ra1 {[%clk 0:00:27.8]} 68. Kh2 {[%clk 0:00:03]} 68... Ra7 {[%clk 0:00:27.3]} 69.
Rc3 {[%clk 0:00:01.9]} 69... Kf6 {[%clk 0:00:27.1]} 70. Rf3+ {[%clk 0:00:01.9]}
70... Ke5 {[%clk 0:00:27.2]} 71. Re3+ {[%clk 0:00:02.1]} 71... Kf4 {[%clk
0:00:27.2]} 72. Rd3 {[%clk 0:00:01.3]} 72... Rh7+ {[%clk 0:00:27.1]} 73. Rh3
{[%clk 0:00:01.9]} 73... Rxh3+ {[%clk 0:00:27.6]} 74. Kxh3 {[%clk 0:00:02.8]}
74... Rh5+ {[%clk 0:00:27.8]} 0-1

[Event "Early-Titled-Tuesday-Blitz-January-23-2024"]
[Site "Chess.com"]
[Date "2024.01.23"]
[Round "5"]
[White "Quattroporte300"]
[Black "JuniorJumper"]
[Result "0-1"]
[WhiteElo "2438"]
[BlackElo "2568"]
[TimeControl "180+1"]
[EndTime "8:56:26 PST"]
[Termination "JuniorJumper won on time"]

1. e4 {[%clk 0:03:00.9]} 1... e5 {[%clk 0:02:44.2]} 2. Nf3 {[%clk 0:03:00]} 2...
Nc6 {[%clk 0:02:44.7]} 3. Nc3 {[%clk 0:02:59.5]} 3... Nf6 {[%clk 0:02:42.6]} 4.
Bb5 {[%clk 0:02:59.8]} 4... Bb4 {[%clk 0:02:42.1]} 5. O-O {[%clk 0:02:59]} 5...
Bxc3 {[%clk 0:02:40.3]} 6. bxc3 {[%clk 0:02:55.9]} 6... d6 {[%clk 0:02:40.7]} 7.
d3 {[%clk 0:02:53.6]} 7... O-O {[%clk 0:02:39.4]} 8. Bxc6 {[%clk 0:02:53.3]}
8... bxc6 {[%clk 0:02:39.5]} 9. h3 {[%clk 0:02:53.9]} 9... h6 {[%clk 0:02:39.6]}
10. Re1 {[%clk 0:02:53.9]} 10... Qe7 {[%clk 0:02:38.9]} 11. Rb1 {[%clk
0:02:41.3]} 11... c5 {[%clk 0:02:38.9]} 12. Qe2 {[%clk 0:02:35.5]} 12... Be6
{[%clk 0:02:38]} 13. a3 {[%clk 0:02:30.8]} 13... Rab8 {[%clk 0:02:33.6]} 14. Bd2
{[%clk 0:02:26.7]} 14... Rb6 {[%clk 0:02:33.6]} 15. d4 {[%clk 0:02:13.7]} 15...
Bd7 {[%clk 0:01:58.5]} 16. d5 {[%clk 0:01:49.2]} 16... Rfb8 {[%clk 0:01:55.6]}
17. Rxb6 {[%clk 0:01:46.1]} 17... Rxb6 {[%clk 0:01:56.3]} 18. c4 {[%clk
0:01:39.8]} 18... Ba4 {[%clk 0:01:51.7]} 19. Qd3 {[%clk 0:01:35.4]} 19... Qd8
{[%clk 0:01:48.6]} 20. Ba5 {[%clk 0:01:28.2]} 20... Rb2 {[%clk 0:01:47.8]} 21.
Rc1 {[%clk 0:01:27.5]} 21... Qb8 {[%clk 0:01:48.3]} 22. Nd2 {[%clk 0:01:07.9]}
22... Ne8 {[%clk 0:01:35.4]} 23. Qc3 {[%clk 0:00:56.6]} 23... Rb7 {[%clk
0:00:45.2]} 24. g3 {[%clk 0:00:52.4]} 24... Qc8 {[%clk 0:00:43.8]} 25. Kg2
{[%clk 0:00:52.2]} 25... Nf6 {[%clk 0:00:42.1]} 26. Qe3 {[%clk 0:00:43.3]} 26...
Rb2 {[%clk 0:00:39.6]} 27. Qc3 {[%clk 0:00:43.1]} 27... Rb7 {[%clk 0:00:39.8]}
28. Qe3 {[%clk 0:00:42.9]} 28... Kh7 {[%clk 0:00:39.9]} 29. Bc3 {[%clk
0:00:40.8]} 29... Qd7 {[%clk 0:00:35]} 30. f4 {[%clk 0:00:40.7]} 30... exf4
{[%clk 0:00:33.8]} 31. gxf4 {[%clk 0:00:40.8]} 31... Nh5 {[%clk 0:00:28.6]} 32.
Qf3 {[%clk 0:00:27.8]} 32... g6 {[%clk 0:00:28.9]} 33. f5 {[%clk 0:00:19.9]}
33... Qe7 {[%clk 0:00:28.1]} 34. f6 {[%clk 0:00:18]} 34... Qd7 {[%clk
0:00:25.6]} 35. Kh2 {[%clk 0:00:15.4]} 35... Rb8 {[%clk 0:00:25.6]} 36. Qg4
{[%clk 0:00:04.2]} 36... Qxg4 {[%clk 0:00:18.5]} 37. hxg4 {[%clk 0:00:05.1]}
37... Nf4 {[%clk 0:00:19.4]} 38. Rb1 {[%clk 0:00:03.3]} 38... Rxb1 {[%clk
0:00:17.6]} 39. Nxb1 {[%clk 0:00:04.2]} 39... Bxc2 {[%clk 0:00:18.4]} 40. Nd2
{[%clk 0:00:04.9]} 40... Nd3 {[%clk 0:00:08.4]} 41. Ba5 {[%clk 0:00:05.2]} 41...
Nf2 {[%clk 0:00:08.8]} 42. Bxc7 {[%clk 0:00:04.4]} 42... Nxg4+ {[%clk
0:00:06.3]} 43. Kg3 {[%clk 0:00:04.3]} 43... Nxf6 {[%clk 0:00:07]} 44. Bxd6
{[%clk 0:00:03.8]} 44... Nxe4+ {[%clk 0:00:06.4]} 45. Nxe4 {[%clk 0:00:04.5]}
45... Bxe4 {[%clk 0:00:07.3]} 46. Bxc5 {[%clk 0:00:05.4]} 46... Bd3 {[%clk
0:00:07.5]} 47. Bxa7 {[%clk 0:00:05.1]} 47... Bxc4 {[%clk 0:00:07.4]} 48. d6
{[%clk 0:00:05.4]} 48... Bb5 {[%clk 0:00:08.1]} 49. Bd4 {[%clk 0:00:03.1]} 49...
g5 {[%clk 0:00:06.4]} 50. Kg4 {[%clk 0:00:02.8]} 50... Kg6 {[%clk 0:00:06.8]}
51. Kf3 {[%clk 0:00:02.7]} 51... Kf5 {[%clk 0:00:07.2]} 52. Bg7 {[%clk
0:00:02.3]} 52... h5 {[%clk 0:00:07.4]} 53. Ke3 {[%clk 0:00:03]} 53... Ke6
{[%clk 0:00:07.5]} 54. Bf8 {[%clk 0:00:02.4]} 54... f5 {[%clk 0:00:06.1]} 55.
Kd4 {[%clk 0:00:03]} 55... f4 {[%clk 0:00:06.4]} 56. Kc5 {[%clk 0:00:03.7]}
56... Ba4 {[%clk 0:00:06.5]} 57. Kb4 {[%clk 0:00:02.5]} 57... Bd7 {[%clk
0:00:07]} 58. a4 {[%clk 0:00:02.8]} 58... f3 {[%clk 0:00:07.7]} 59. Bg7 {[%clk
0:00:01.9]} 59... f2 {[%clk 0:00:08.6]} 0-1